bitfinex-derivatives/quotes_BTCF0:USTF0_20250209
["timestamp","ask_amount","ask_price","bid_price","bid_amount"]
[1739110885975,0.2077372,96261.0,96260.0,0.07195823]
[1739110887374,0.2077372,96261.0,96260.0,0.07895823]
[1739110887584,0.2077372,96261.0,96260.0,0.08795823]
[1739110888570,0.2077372,96261.0,96260.0,0.01755823]
[1739110888769,0.2077372,96261.0,96260.0,0.00355823]
[1739110894075,0.2077372,96261.0,96260.0,0.002]
[1739110894483,0.5685372,96261.0,96260.0,0.002]
[1739110898276,0.76874128,96261.0,96260.0,0.002]
[1739110898678,0.2077501,96255.0,96254.0,0.00015581]
[1739110898883,0.2077717,96245.0,96244.0,0.3608]
[1739110899382,0.3608,96252.0,96240.0,0.07460272]
[1739110899587,0.2077803,96241.0,96240.0,0.07460272]
[1739110899885,0.2077846,96239.0,96237.0,0.3608]
[1739110901182,0.2087846,96239.0,96237.0,0.3608]
[1739110901883,0.2107846,96239.0,96237.0,0.3608]
[1739110902991,0.26130411,96239.0,96237.0,0.3608]
[1739110905682,0.2077868,96238.0,96237.0,0.3608]
[1739110905877,0.3608,96238.0,96231.0,0.00015581]
[1739110906084,0.2077998,96232.0,96231.0,0.00015581]
[1739110906984,0.36232001,96238.0,96226.0,0.3608]
[1739110907193,0.2078106,96227.0,96226.0,0.3608]
[1739110908395,0.2078106,96227.0,96226.0,0.3628]
[1739110923910,0.2817306,96227.0,96226.0,0.002]
[1739110925311,0.20783,96218.0,96217.0,0.00015581]
[1739110926207,0.20783,96218.0,96217.0,1e-08]
[1739110926509,0.20883,96218.0,96217.0,1e-08]
[1739110928802,0.70705511,96218.0,96217.0,1e-08]
[1739110929404,0.2078667,96201.0,96200.0,0.1]
[1739110929607,0.2817867,96201.0,96200.0,0.1]
[1739110930908,0.07392,96201.0,96191.0,0.00015589]
[1739110931110,0.2078862,96192.0,96191.0,0.00015589]
[1739110932412,0.2078862,96192.0,96191.0,0.00315589]
[1739110932805,0.2078862,96192.0,96191.0,0.00415589]
[1739110935408,0.2078862,96192.0,96191.0,0.00115589]
[1739110935914,0.2108862,96192.0,96191.0,0.00015589]
[1739110937314,0.56144328,96192.0,96191.0,9e-08]
[1739110937615,0.2079575,96159.0,96150.0,0.07460272]
[1739110938123,0.2079575,96159.0,96156.0,0.00913381]
[1739110938317,0.0520057,96129.0,96117.0,9e-08]
[1739110938615,0.3608,96118.0,96117.0,9e-08]
[1739110938821,0.4354,96118.0,96117.0,9e-08]
[1739110939004,0.4354,96118.0,96113.0,0.12500487]
[1739110939207,0.2080549,96114.0,96113.0,0.12500487]
[1739110940319,0.2825349,96114.0,96113.0,0.12500487]
[1739110942611,0.2825349,96114.0,96113.0,0.12700487]
[1739110943020,0.2080549,96114.0,96113.0,0.12700487]
[1739110943319,0.2825349,96114.0,96113.0,0.12700487]
[1739110943922,0.2825349,96114.0,96113.0,0.00210487]
[1739110946713,0.2825349,96114.0,96092.0,0.132]
[1739110946714,0.208083,96101.0,96092.0,0.132]
[1739110947021,0.929683,96101.0,96098.0,0.00926632]
[1739110948119,0.929683,96101.0,96092.0,0.132]
[1739110948321,0.929683,96101.0,96100.0,0.104]
[1739110948533,0.930683,96101.0,96100.0,0.111]
[1739110951421,0.930683,96101.0,96100.0,0.109]
[1739110951622,0.7226,96101.0,96087.0,0.00157576]
[1739110951822,0.5689111,96088.0,96081.0,0.0675]
[1739110952121,0.2081186,96085.0,96081.0,0.0675]
[1739110952321,0.2081228,96083.0,96081.0,0.0675]
[1739110953024,0.2081228,96083.0,96081.0,0.0765]
[1739110954121,0.2081228,96083.0,96081.0,0.08555393]
[1739110954523,0.2081326,96079.0,96076.0,0.12853944]
[1739110954820,0.2081348,96078.0,96076.0,0.12853944]
[1739110955014,0.2081348,96078.0,96077.0,0.1328]
[1739110956214,0.2091348,96078.0,96077.0,0.1418]
[1739110956619,0.2101348,96078.0,96077.0,0.1448]
[1739110957824,0.2101348,96078.0,96077.0,0.213]
[1739110960825,0.5709348,96078.0,96077.0,0.213]
[1739110961316,0.5709348,96078.0,96077.0,0.1448]
[1739110962420,0.5709348,96078.0,96077.0,0.1488]
[1739110962816,0.5709348,96078.0,96077.0,0.016]
[1739110963533,0.2081501,96070.0,96069.0,0.0015614]
[1739110963725,0.5689501,96070.0,96069.0,0.0015614]
[1739110964414,0.20965291,96078.0,96069.0,0.00891671]
[1739110964616,0.2081415,96074.0,96073.0,0.2081408]
[1739110964821,0.2081516,96070.0,96069.0,0.2081523]
[1739110965224,0.2081396,96075.0,96074.0,0.2081391]
[1739110966726,0.2081396,96075.0,96074.0,0.2091391]
[1739110967618,0.2081396,96075.0,96074.0,0.21633724]
[1739110968127,0.2081396,96075.0,96074.0,0.00819814]
[1739110970219,0.2081396,96075.0,96074.0,0.21633954]
[1739110971224,0.2081396,96075.0,96074.0,0.00819814]
[1739110972629,0.2081396,96075.0,96074.0,0.001]
[1739110973329,0.25874268,96075.0,96074.0,0.001]
[1739110974930,0.25874268,96075.0,96074.0,0.2091414]
[1739110981535,0.25874268,96075.0,96074.0,0.001]
[1739110982534,0.5167389,96075.0,96074.0,0.001]
[1739110983042,0.8775389,96075.0,96074.0,0.001]
[1739110984637,0.88494997,96075.0,96074.0,0.001]
[1739110986050,1.10514997,96075.0,96074.0,0.001]
[1739110986534,1.10514997,96075.0,96048.0,0.95638066]
[1739110986535,0.89701037,96075.0,96048.0,0.95638066]
[1739110986729,0.2081956,96049.0,96048.0,0.18678066]
[1739110987332,0.3608,96050.0,96046.0,0.00711195]
[1739110987333,0.2081999,96047.0,96046.0,0.00711195]
[1739110987534,0.2081999,96047.0,96045.0,0.2082041]
[1739110988124,0.3608,96050.0,96040.0,0.07460272]
[1739110988321,0.3608,96050.0,96043.0,0.008855]
[1739110988525,0.3608,96050.0,96049.0,0.2081956]
[1739110989132,0.00015617,96058.0,96057.0,0.2081783]
[1739110991039,0.00315617,96058.0,96057.0,0.2081783]
[1739110991730,0.00315617,96058.0,96057.0,0.21546783]
[1739110991933,0.00015617,96058.0,96057.0,0.21546783]
[1739110992137,0.00015617,96058.0,96057.0,0.21746783]
[1739110992637,0.00215617,96058.0,96057.0,0.21746783]
[1739110993232,0.36095617,96058.0,96057.0,0.21746783]
[1739110993433,0.36095617,96058.0,96057.0,0.21946783]
[1739110993640,0.36095617,96058.0,96057.0,0.21846783]
[1739110994037,0.36095617,96058.0,96057.0,0.21546783]
[1739110994341,0.36095617,96058.0,96057.0,0.21746783]
[1739110994842,0.36195617,96058.0,96057.0,0.21746783]
[1739110995745,0.2081873,96053.0,96052.0,0.2081883]
[1739110996440,0.2081995,96048.0,96046.0,0.57641977]
[1739110997046,0.2082021,96046.0,96045.0,0.18678066]
[1739110997544,0.2792021,96046.0,96045.0,0.18678066]
[1739110997843,0.2082064,96044.0,96043.0,0.00156183]
[1739110999849,0.2082064,96044.0,96043.0,0.00656183]
[1739111000240,0.2082064,96044.0,96043.0,0.00956183]
[1739111003843,0.2082064,96044.0,96043.0,0.008]
[1739111006652,0.21559334,96044.0,96043.0,0.008]
[1739111006856,0.73579334,96044.0,96043.0,0.008]
[1739111008949,0.5024464,96044.0,96043.0,0.008]
[1739111009251,0.2082064,96044.0,96043.0,0.008]
[1739111010445,0.3608,96045.0,96043.0,0.2162086]
[1739111011244,0.00015617,96058.0,96053.0,0.2081869]
[1739111013150,0.00015617,96058.0,96044.0,0.07460272]
[1739111013349,0.00015617,96058.0,96055.0,0.2081821]
[1739111013944,0.00015617,96058.0,96057.0,0.2081782]
[1739111014649,0.2081873,96053.0,96050.0,0.2081922]
[1739111014849,0.3608,96052.0,96050.0,0.2081922]
[1739111015349,0.3608,96052.0,96051.0,0.2081912]
[1739111017057,0.3608,96052.0,96051.0,0.21538578]
[1739111018060,0.3608,96052.0,96051.0,0.21638578]
[1739111019447,0.00015617,96058.0,96057.0,0.2081782]
[1739111020949,0.00315617,96058.0,96057.0,0.2081782]
[1739111021150,0.00515617,96058.0,96057.0,0.2081782]
[1739111024455,0.3608,96075.0,96069.0,0.2081522]
[1739111024855,0.2081327,96078.0,96069.0,0.2081522]
[1739111025263,0.2081379,96076.0,96069.0,0.2081522]
[1739111025462,0.2081413,96075.0,96069.0,0.2081522]
[1739111025755,0.2081413,96075.0,96069.0,0.2111522]
[1739111025960,0.2081413,96075.0,96069.0,0.2121522]
[1739111026958,0.2081413,96075.0,96069.0,0.2214308]
[1739111027149,0.00015617,96079.0,96069.0,0.2214308]
[1739111027659,0.3608,96075.0,96070.0,0.2081501]
[1739111027863,0.2081365,96077.0,96076.0,0.2081371]
[1739111028157,0.5689365,96077.0,96076.0,0.2081371]
[1739111029062,0.5689365,96077.0,96074.0,0.2081411]
[1739111029063,0.2081413,96075.0,96074.0,0.2081411]
[1739111030263,0.5689413,96075.0,96074.0,0.2081411]
[1739111030464,0.3608,96075.0,96074.0,0.2081411]
[1739111031362,0.3608,96075.0,96074.0,0.2091411]
[1739111032065,0.5689392,96075.0,96074.0,0.2091411]
[1739111035572,0.3608,96075.0,96074.0,0.2091411]
[1739111036669,0.00015617,96079.0,96074.0,0.001]
[1739111036968,0.00015617,96079.0,96078.0,0.2081327]
[1739111037859,0.00115617,96079.0,96078.0,0.2081327]
[1739111038061,0.00215617,96079.0,96078.0,0.2081327]
[1739111049280,0.00215617,96079.0,96075.0,0.3608]
[1739111049281,0.3608,96089.0,96088.0,0.2081111]
[1739111050976,0.3658,96089.0,96088.0,0.2091111]
[1739111051776,0.01,96089.0,96088.0,0.2091111]
[1739111053482,0.00015617,96098.0,96097.0,0.2080916]
[1739111054985,0.00015617,96098.0,96097.0,0.2090916]
[1739111055281,0.00015617,96098.0,96097.0,0.5698916]
[1739111055986,0.3608,96114.0,96097.0,0.5698916]
[1739111055987,0.2080636,96110.0,96097.0,0.3618]
[1739111056190,0.3608,96114.0,96097.0,0.3618]
[1739111056390,0.3608,96114.0,96104.0,0.07483641]
[1739111057189,0.3608,96106.0,96104.0,0.28291241]
[1739111057377,0.3608,96106.0,96104.0,0.208076]
[1739111057582,0.3608,96106.0,96097.0,0.001]
[1739111057786,0.3608,96106.0,96105.0,0.2080743]
[1739111058178,0.006,96110.0,96108.0,0.2080662]
[1739111058379,0.006,96110.0,96104.0,0.2080753]
[1739111058579,0.004,96110.0,96105.0,0.2080729]
[1739111058792,0.002,96106.0,96096.0,0.0748446]
[1739111059194,0.002,96106.0,96103.0,0.2080773]
[1739111059388,0.2100641,96110.0,96103.0,0.2080773]
[1739111059591,0.2080659,96109.0,96103.0,0.2080773]
[1739111060981,0.2080659,96109.0,96096.0,0.0748446]
[1739111061191,0.002,96106.0,96105.0,0.2080743]
[1739111061689,0.004,96110.0,96096.0,0.0748446]
[1739111061890,0.005,96109.0,96107.0,0.2080697]
[1739111062196,0.005,96109.0,96108.0,0.2080678]
[1739111062888,0.003,96109.0,96108.0,0.2080678]
[1739111063296,0.3608,96114.0,96101.0,0.1441]
[1739111063297,0.001,96106.0,96102.0,0.2601008]
[1739111063497,0.001,96106.0,96105.0,0.2080743]
[1739111064995,0.005,96109.0,96108.0,0.2080678]
[1739111065196,0.003,96109.0,96108.0,0.2080678]
[1739111066300,0.002,96109.0,96108.0,0.2080678]
[1739111068098,0.005,96109.0,96108.0,0.2080678]
[1739111068907,0.002,96109.0,96108.0,0.2110678]
[1739111069102,0.3608,96114.0,96108.0,0.003]
[1739111069289,0.3608,96114.0,96113.0,0.2080569]
[1739111071499,0.3608,96114.0,96113.0,0.2090569]
[1739111074507,0.3608,96114.0,96113.0,0.2080569]
[1739111074701,0.3608,96114.0,96113.0,0.2090569]
[1739111075504,0.3608,96114.0,96113.0,0.21795985]
[1739111079308,0.3608,96114.0,96113.0,0.21695985]
[1739111079501,0.3608,96114.0,96113.0,0.21795985]
[1739111081008,0.5688548,96114.0,96113.0,0.21795985]
[1739111083523,0.3608,96114.0,96113.0,0.21795985]
[1739111090623,0.0727,96116.0,96115.0,0.2080526]
[1739111091728,0.0737,96116.0,96115.0,0.2080526]
[1739111093715,0.4345,96116.0,96115.0,0.2080526]
[1739111098735,0.0737,96116.0,96115.0,0.2080526]
[1739111099032,0.4345,96116.0,96115.0,0.2080526]
[1739111099236,0.0737,96116.0,96115.0,0.2080526]
[1739111099431,0.12428132,96116.0,96115.0,0.2080526]
[1739111099636,0.48508132,96116.0,96115.0,0.2080526]
[1739111101241,0.12428132,96116.0,96115.0,0.2080526]
[1739111101437,0.48508132,96116.0,96115.0,0.2080526]
[1739111105958,0.48408132,96116.0,96115.0,0.2080526]
[1739111106852,0.48408132,96116.0,96115.0,0.2090526]
[1739111107455,0.4335,96116.0,96115.0,0.2090526]
[1739111110667,0.4335,96116.0,96115.0,0.001]
[1739111111852,0.4335,96116.0,96112.0,0.18678066]
[1739111111853,0.2080526,96115.0,96112.0,0.18678066]
[1739111112154,0.5688569,96113.0,96112.0,0.18678066]
[1739111113156,0.3608,96113.0,96112.0,0.18678066]
[1739111114263,0.3608,96113.0,96112.0,0.19623839]
[1739111114556,0.3608,96113.0,96112.0,0.19723839]
[1739111115259,0.3608,96113.0,96112.0,0.01045773]
[1739111130767,0.5688569,96113.0,96112.0,0.01045773]
[1739111146991,0.5688569,96113.0,96112.0,0.001]
[1739111147196,0.2080786,96103.0,96102.0,0.18678066]
[1739111148595,0.2080786,96103.0,96102.0,0.40422605]
[1739111149189,0.2080786,96103.0,96102.0,0.40822605]
[1739111149378,0.2080786,96103.0,96102.0,0.41322605]
[1739111149791,0.2080786,96103.0,96102.0,0.22644539]
[1739111155796,0.3608,96106.0,96105.0,0.2080742]
[1739111155991,0.5688721,96106.0,96105.0,0.2080742]
[1739111157494,0.5688721,96106.0,96105.0,0.2150742]
[1739111162901,0.2080513,96116.0,96115.0,0.2080482]
[1739111163999,0.2080612,96111.0,96110.0,0.0843]
[1739111164201,0.2080612,96111.0,96110.0,0.2080634]
[1739111164702,0.2080612,96111.0,96105.0,0.003]
[1739111165097,0.001,96116.0,96105.0,0.003]
[1739111165098,0.5688721,96106.0,96105.0,0.003]
[1739111165499,0.2080785,96103.0,96102.0,0.00936469]
[1739111165694,0.3608,96106.0,96094.0,0.3723975]
[1739111165894,0.3608,96106.0,96095.0,0.3113011]
[1739111166191,0.2080937,96096.0,96095.0,0.3113011]
[1739111166987,0.2080937,96096.0,96095.0,0.3203011]
[1739111168800,0.2080937,96096.0,96095.0,0.3113011]
[1739111169003,0.2090937,96096.0,96095.0,0.3203011]
[1739111169305,0.2090937,96096.0,96095.0,0.3263011]
[1739111169804,0.21869792,96096.0,96095.0,0.015]
[1739111171098,0.57949792,96096.0,96095.0,0.015]
[1739111171699,0.57949792,96096.0,96095.0,0.009]
[1739111171905,0.58149792,96096.0,96095.0,0.009]
[1739111172106,0.37240422,96096.0,96086.0,0.07485545]
[1739111172405,0.2081089,96089.0,96086.0,0.07485545]
[1739111172605,0.2081089,96089.0,96088.0,0.00994419]
[1739111173803,0.2101089,96089.0,96088.0,0.00994419]
[1739111174814,0.5709089,96089.0,96088.0,0.00994419]
[1739111175108,0.5729089,96089.0,96088.0,0.00994419]
[1739111175799,0.5729089,96089.0,96088.0,0.00015617]
[1739111182315,0.2121089,96089.0,96088.0,0.00015617]
[1739111182516,0.5729089,96089.0,96088.0,0.00015617]
[1739111184310,0.208137,96076.0,96075.0,4e-08]
[1739111184518,0.642617,96076.0,96075.0,4e-08]
[1739111184709,0.942617,96076.0,96075.0,4e-08]
[1739111185312,0.568937,96076.0,96075.0,4e-08]
[1739111185515,0.568937,96076.0,96066.0,0.07501153]
[1739111185516,0.2081565,96067.0,96066.0,0.07501153]
[1739111185704,0.5689565,96067.0,96066.0,0.00015608]
[1739111186805,0.5739565,96067.0,96066.0,0.00015608]
[1739111187816,0.5779565,96067.0,96066.0,0.00015608]
[1739111190123,0.208189,96052.0,96051.0,0.00961503]
[1739111190324,0.208197,96049.0,96046.0,0.2082015]
[1739111191024,0.3608,96052.0,96044.0,0.17266709]
[1739111191323,0.2082042,96045.0,96044.0,0.17266709]
[1739111192422,0.2082042,96045.0,96044.0,0.17666709]
[1739111193226,0.2082042,96045.0,96044.0,0.18166709]
[1739111195127,0.2082042,96045.0,96044.0,0.09916709]
[1739111196016,0.2082042,96045.0,96044.0,0.0898]
[1739111197226,0.2082042,96045.0,96044.0,0.009]
[1739111202221,0.5690042,96045.0,96044.0,0.009]
[1739111203947,0.56895469,96045.0,96044.0,0.009]
[1739111205048,0.56895469,96045.0,96044.0,0.00109278]
[1739111216248,0.61957579,96045.0,96044.0,0.00109278]
[1739111218853,0.25877579,96045.0,96044.0,0.00109278]
[1739111219052,0.61957579,96045.0,96044.0,0.00109278]
[1739111219453,0.25877579,96045.0,96044.0,0.00109278]
[1739111219662,0.56895469,96045.0,96044.0,0.00109278]
[1739111220253,0.20815469,96045.0,96044.0,0.00109278]
[1739111220550,0.56895469,96045.0,96044.0,0.00109278]
[1739111223351,0.75517067,96045.0,96044.0,0.00109278]
[1739111223757,0.75517067,96045.0,96028.0,0.001562]
[1739111223758,0.0520538,96040.0,96028.0,0.001562]
[1739111223954,0.9298388,96029.0,96028.0,0.001562]
[1739111224757,0.2082562,96021.0,96020.0,0.24953993]
[1739111224956,0.5690562,96021.0,96020.0,0.24953993]
[1739111226758,0.5700562,96021.0,96020.0,0.26353993]
[1739111227055,0.62069072,96021.0,96020.0,0.01109268]
[1739111228551,0.41243452,96021.0,96020.0,0.01109268]
[1739111228762,0.41243452,96021.0,96020.0,0.21935018]
[1739111229354,0.41343452,96021.0,96020.0,0.21335018]
[1739111229547,0.62168992,96021.0,96020.0,0.21335018]
[1739111229957,0.62068992,96021.0,96020.0,0.21635018]
[1739111230159,0.61968992,96021.0,96020.0,0.2112575]
[1739111230358,0.5700554,96021.0,96020.0,0.2152575]
[1739111230664,0.5710554,96021.0,96020.0,0.2122575]
[1739111230961,0.5700554,96021.0,96020.0,0.20930817]
[1739111231153,0.5710554,96021.0,96020.0,0.20930817]
[1739111232161,0.5700554,96021.0,96020.0,0.20930817]
[1739111232361,0.2102554,96021.0,96020.0,0.20930817]
[1739111232750,0.2092554,96021.0,96020.0,0.20930817]
[1739111232959,0.2102554,96021.0,96020.0,0.20930817]
[1739111233257,0.2092554,96021.0,96020.0,0.20930817]
[1739111233462,0.001,96021.0,96020.0,0.20930817]
[1739111233662,0.3608,96051.0,96037.0,0.2082206]
[1739111233859,0.208206,96044.0,96037.0,0.20927127]
[1739111234058,0.3608,96043.0,96037.0,0.20927127]
[1739111234258,0.5690077,96043.0,96037.0,0.20927127]
[1739111234457,0.5696477,96043.0,96037.0,0.20927127]
[1739111234960,0.5696477,96043.0,96037.0,0.21027127]
[1739111234961,0.36144,96043.0,96037.0,0.21027127]
[1739111236167,0.2082126,96041.0,96037.0,0.21027127]
[1739111236667,0.2082126,96041.0,96037.0,0.22014077]
[1739111237375,0.2082126,96041.0,96037.0,0.21914077]
[1739111239966,0.00215617,96038.0,96037.0,0.21914077]
[1739111241369,0.078,96055.0,96037.0,0.21914077]
[1739111241370,0.3608,96061.0,96037.0,0.37172017]
[1739111241576,0.2081797,96056.0,96052.0,0.208187]
[1739111242067,0.2081797,96056.0,96053.0,0.00105067]
[1739111242873,0.00256222,96054.0,96053.0,0.00105067]
[1739111243973,0.00356222,96054.0,96053.0,0.00105067]
[1739111245876,0.00356222,96054.0,96053.0,0.01077971]
[1739111246174,0.002,96054.0,96053.0,0.01077971]
[1739111246771,0.002,96054.0,96053.0,0.37157971]
[1739111246975,0.00015617,96063.0,96062.0,0.2081665]
[1739111248061,0.00015617,96063.0,96062.0,0.20921717]
[1739111252382,0.31095617,96070.0,96062.0,0.00105067]
[1739111252575,0.31095617,96070.0,96067.0,0.2081537]
[1739111252979,0.31095617,96070.0,96068.0,0.00105067]
[1739111253372,0.2081513,96069.0,96068.0,0.00105067]
[1739111256070,0.2111513,96069.0,96068.0,0.00105067]
[1739111256771,0.2131513,96069.0,96068.0,0.00105067]
[1739111258684,0.22318135,96069.0,96066.0,0.2081577]
[1739111259679,0.01003005,96068.0,96066.0,0.2081577]
[1739111260181,0.01003005,96068.0,96066.0,0.2181334]
[1739111260680,0.01003005,96067.0,96066.0,0.2181334]
[1739111261676,0.01003005,96067.0,96066.0,0.2081577]
[1739111261981,0.2081673,96062.0,96060.0,0.2081697]
[1739111262279,0.0793,96061.0,96060.0,0.2081697]
[1739111262870,0.08933005,96061.0,96060.0,0.2081697]
[1739111263983,0.08933005,96061.0,96060.0,0.2101697]
[1739111265581,0.01003005,96061.0,96060.0,0.2101697]
[1739111267684,0.21819875,96061.0,96060.0,0.2101697]
[1739111270285,0.01003005,96061.0,96060.0,0.2101697]
[1739111271177,0.01003005,96061.0,96060.0,0.2865697]
[1739111273385,0.00056001,96070.0,96069.0,0.2081513]
[1739111273587,0.18621598,96071.0,96070.0,0.2081491]
[1739111274189,0.18621598,96071.0,96062.0,0.1255216]
[1739111274190,0.39435018,96077.0,96076.0,0.2081361]
[1739111275989,0.18621598,96077.0,96076.0,0.2081361]
[1739111276288,0.001562,96087.0,96076.0,0.001]
[1739111276491,0.001562,96087.0,96086.0,0.2081145]
[1739111277381,0.21587932,96089.0,96088.0,0.2081102]
[1739111277589,0.24653942,96095.0,96081.0,0.07348]
[1739111277590,0.21587932,96093.0,96081.0,0.07348]
[1739111277780,0.21587932,96093.0,96092.0,0.2081015]
[1739111280287,0.21587932,96093.0,96092.0,0.5689015]
[1739111280488,0.21987932,96093.0,96092.0,0.5689015]
[1739111281487,0.21987932,96093.0,96092.0,0.57871835]
[1739111282194,0.00015617,96096.0,96095.0,0.208095]
[1739111282410,1e-08,96096.0,96095.0,0.281535]
[1739111283398,1e-08,96096.0,96095.0,0.284535]
[1739111283595,1e-08,96096.0,96095.0,0.288535]
[1739111287702,0.3608,96121.0,96095.0,0.59834]
[1739111288001,0.3608,96121.0,96112.0,0.2080582]
[1739111288197,0.3608,96129.0,96112.0,0.6422582]
[1739111288795,0.2080242,96128.0,96122.0,0.2080365]
[1739111291097,0.3608,96129.0,96122.0,0.2080365]
[1739111291399,0.2080452,96118.0,96117.0,0.2080446]
[1739111291800,0.2080452,96118.0,96113.0,0.07485276]
[1739111291801,0.1609,96123.0,96113.0,0.07485276]
[1739111292000,0.1609,96123.0,96113.0,0.08488068]
[1739111292205,0.1609,96123.0,96122.0,0.2080365]
[1739111292399,0.1579,96123.0,96122.0,0.2080365]
[1739111293298,0.1609,96123.0,96122.0,0.2090365]
[1739111297303,0.003,96123.0,96122.0,0.2090365]
[1739111299705,0.003,96123.0,96122.0,0.5698365]
[1739111299911,0.00015608,96132.0,96131.0,0.208017]
[1739111301002,0.00115608,96132.0,96131.0,0.208017]
[1739111302010,0.00115608,96132.0,96131.0,0.21785632]
[1739111316128,0.00115608,96132.0,96131.0,0.57865632]
[1739111316626,0.0766,96148.0,96143.0,0.2079911]
[1739111318112,0.00556074,96144.0,96143.0,0.2079911]
[1739111319113,0.00556074,96144.0,96143.0,0.21776911]
[1739111321721,0.004,96144.0,96143.0,0.21776911]
[1739111322524,0.00015608,96153.0,96152.0,0.2079716]
[1739111323234,8e-08,96153.0,96152.0,0.2079716]
[1739111323421,0.3608,96174.0,96173.0,0.2079262]
[1739111323731,0.3608,96174.0,96173.0,0.2812062]
[1739111324139,0.00056001,96182.0,96174.0,0.207924]
[1739111324325,0.0737,96189.0,96174.0,0.207924]
[1739111324629,0.00010303,96184.0,96174.0,0.207924]
[1739111326127,0.00010303,96184.0,96173.0,0.08304026]
[1739111326128,0.00010303,96184.0,96183.0,0.2079046]
[1739111331130,0.20800553,96184.0,96183.0,0.21757353]
[1739111331536,0.00010303,96184.0,96183.0,0.21757353]
[1739111333635,0.00010303,96184.0,96183.0,0.57837353]
[1739111340839,0.00010303,96184.0,96183.0,0.21757353]
[1739111341241,0.20800553,96184.0,96183.0,0.21757353]
[1739111341637,0.00010303,96184.0,96174.0,0.07485276]
[1739111341830,0.2079176,96177.0,96176.0,0.2079176]
[1739111342345,0.2848176,96177.0,96176.0,0.2079176]
[1739111343245,0.2848176,96177.0,96167.0,0.07485276]
[1739111343246,0.0769,96177.0,96167.0,0.07485276]
[1739111343446,0.2079414,96167.0,96166.0,0.2079409]
[1739111343834,0.2079414,96166.0,96162.0,0.00986434]
[1739111344350,0.2079414,96166.0,96160.0,0.07485276]
[1739111345346,0.2079414,96166.0,96159.0,0.21807828]
[1739111345944,0.2079673,96154.0,96153.0,0.00155997]
[1739111346147,0.5687673,96154.0,96153.0,0.00155997]
[1739111347241,0.5687673,96154.0,96153.0,0.00255997]
[1739111348944,0.5687673,96154.0,96153.0,0.00155997]
[1739111350438,0.3608,96154.0,96146.0,0.01017917]
[1739111350638,0.3608,96154.0,96144.0,0.000156]
[1739111350639,0.2079808,96148.0,96144.0,0.000156]
[1739111351842,0.2079808,96148.0,96144.0,0.003156]
[1739111352143,0.2079808,96148.0,96146.0,0.003]
[1739111353549,0.2079808,96148.0,96144.0,0.007156]
[1739111354349,0.2079808,96148.0,96146.0,0.002]
[1739111355049,0.2079808,96148.0,96144.0,0.007156]
[1739111355347,0.2079808,96148.0,96146.0,0.003]
[1739111355855,0.2079808,96148.0,96146.0,0.005]
[1739111356239,0.2079808,96148.0,96146.0,0.002]
[1739111357453,0.2079868,96145.0,96144.0,0.007156]
[1739111357646,0.5687868,96145.0,96144.0,0.007156]
[1739111358055,0.5687868,96145.0,96144.0,0.004156]
[1739111358355,0.5687868,96145.0,96144.0,0.000156]
[1739111358855,0.5687868,96145.0,96144.0,0.003156]
[1739111359249,0.5687868,96145.0,96144.0,0.007156]
[1739111361453,0.2080084,96135.0,96134.0,0.76876]
[1739111361758,0.2080084,96135.0,96124.0,0.3608]
[1739111361759,0.20803,96125.0,96124.0,0.3608]
[1739111361944,0.20803,96125.0,96124.0,0.37084766]
[1739111362856,0.20803,96125.0,96124.0,0.01004766]
[1739111363054,0.20803,96125.0,96123.0,0.2080335]
[1739111363651,0.20803,96125.0,96123.0,0.21783699]
[1739111364556,0.20803,96125.0,96123.0,0.22683699]
[1739111365760,0.20803,96125.0,96123.0,0.23583699]
[1739111366745,0.2080322,96124.0,96123.0,0.23583699]
[1739111367953,0.2080322,96124.0,96123.0,0.22683699]
[1739111368162,0.2080322,96124.0,96123.0,0.23583699]
[1739111368656,0.2080322,96124.0,96123.0,0.02780349]
[1739111379465,0.2080322,96124.0,96123.0,0.018]
[1739111379672,0.2892322,96124.0,96123.0,0.018]
[1739111387283,0.2892322,96124.0,96123.0,0.001]
[1739111387490,0.2080496,96116.0,96115.0,0.000156]
[1739111387676,0.5688496,96116.0,96115.0,0.000156]
[1739111388876,0.5688496,96116.0,96115.0,0.010156]
[1739111390584,0.61943648,96116.0,96115.0,0.010156]
[1739111393387,0.5688496,96116.0,96115.0,0.010156]
[1739111403186,0.5688496,96116.0,96115.0,0.2182077]
[1739111404793,0.2202,96122.0,96121.0,0.2080387]
[1739111404995,0.3608,96125.0,96115.0,0.010156]
[1739111405289,0.18654519,96126.0,96115.0,0.010156]
[1739111405290,0.18598518,96126.0,96125.0,0.2080301]
[1739111405589,0.18598518,96126.0,96125.0,0.2811501]
[1739111407586,0.18598518,96126.0,96125.0,0.29227781]
[1739111407985,0.18598518,96126.0,96125.0,0.29327781]
[1739111408996,0.000156,96134.0,96133.0,0.2080128]
[1739111410290,0.002156,96134.0,96133.0,0.2080128]
[1739111410995,0.004156,96134.0,96133.0,0.2080128]
[1739111413397,0.004156,96134.0,96125.0,0.01012771]
[1739111413592,0.004156,96134.0,96117.0,0.07308]
[1739111413593,0.004156,96134.0,96126.0,0.2080274]
[1739111413794,0.2080243,96128.0,96126.0,0.2080274]
[1739111413996,0.084256,96134.0,96120.0,0.07485276]
[1739111414193,0.2080409,96121.0,96120.0,0.20804]
[1739111414801,0.0796,96133.0,96119.0,0.3608]
[1739111415000,0.2080431,96119.0,96115.0,0.000156]
[1739111416494,0.2080495,96116.0,96115.0,0.000156]
[1739111417499,0.21790754,96116.0,96115.0,0.000156]
[1739111417804,0.21790754,96116.0,96115.0,0.006156]
[1739111417994,0.29094754,96116.0,96115.0,0.006156]
[1739111418190,0.29094754,96116.0,96115.0,0.010156]
[1739111420493,0.2080852,96100.0,96091.0,0.081]
[1739111420696,0.3608,96106.0,96091.0,0.081]
[1739111420898,0.3608,96106.0,96096.0,0.07485276]
[1739111421198,0.3608,96106.0,96101.0,0.2080799]
[1739111421699,0.00015608,96113.0,96110.0,0.2080625]
[1739111422203,0.00015608,96113.0,96111.0,0.0755]
[1739111424306,0.3608,96112.0,96111.0,0.0755]
[1739111424700,0.00015608,96113.0,96111.0,0.0755]
[1739111424899,0.00115608,96113.0,96111.0,0.09751993]
[1739111425103,0.00115608,96113.0,96112.0,0.2080582]
[1739111425505,0.00015608,96113.0,96112.0,0.2080582]
[1739111426310,0.2080582,96112.0,96111.0,0.012]
[1739111426609,0.5688582,96112.0,96111.0,0.012]
[1739111427112,0.5688582,96112.0,96111.0,0.005]
[1739111427312,0.3608,96112.0,96105.0,0.2080714]
[1739111427504,0.5688582,96112.0,96111.0,0.005]